bitfinex/quotes_SOLUSD_20251201
["timestamp","ask_amount","ask_price","bid_price","bid_amount"]
[1764596293451,16.57456296,126.71,126.66,8.59488385]
[1764596293753,16.57456296,126.71,126.67,3.52]
[1764596293754,0.71,126.71,126.67,3.52]
[1764596293940,0.71,126.7,126.67,3.52]
[1764596294133,0.71,126.72,126.68,0.7]
[1764596294353,0.71,126.72,126.68,8.59335976]
[1764596294838,8.80994492,126.71,126.67,11.41418008]
[1764596295033,9.51994492,126.71,126.67,12.11418008]
[1764596295434,0.71,126.7,126.67,4.22]
[1764596295637,0.71,126.7,126.67,12.11448929]
[1764596295830,0.71,126.7,126.67,11.41448929]
[1764596296642,16.70250208,126.71,126.67,14.98964553]
[1764596296842,17.41250208,126.71,126.67,14.98964553]
[1764596297233,0.71,126.7,126.67,3.52]
[1764596297464,3.58515624,126.7,126.65,3.57515624]
[1764596297629,3.58515624,126.7,126.66,3.52]
[1764596297836,0.71,126.69,126.66,3.52]
[1764596298163,0.71,126.69,126.66,4.22]
[1764596298333,0.71,126.69,126.66,11.41498921]
[1764596298534,8.80994492,126.68,126.66,3.52]
[1764596298942,9.51994492,126.68,126.66,3.52]
[1764596299850,0.71,126.67,126.62,3.57515624]
[1764596300064,11.68510116,126.66,126.62,3.52]
[1764596300561,11.4812924,126.65,126.62,3.52]
[1764596300760,8.60613616,126.65,126.62,3.52]
[1764596301132,16.70521056,126.66,126.62,3.52]
[1764596301337,3.58515624,126.65,126.62,3.52]
[1764596301539,8.80994492,126.64,126.62,3.52]
[1764596301761,8.80994492,126.64,126.61,3.52]
[1764596301762,9.51994492,126.64,126.61,3.52]
[1764596302448,16.70673259,126.64,126.61,4.22]
[1764596302850,17.41673259,126.64,126.61,4.22]
[1764596304647,0.71,126.63,126.61,3.52]
[1764596304853,8.70457015,126.63,126.59,11.41924041]
[1764596305075,0.71,126.63,126.59,20.11381056]
[1764596305863,16.80451507,126.64,126.6,0.66]
[1764596306040,17.52451507,126.64,126.6,0.66]
[1764596306246,0.72,126.63,126.6,0.66]
[1764596306446,0.72,126.63,126.59,11.41924041]
[1764596306648,0.72,126.63,126.59,24.60760887]
[1764596306863,7.89604574,126.65,126.61,12.52836846]
[1764596307064,7.89604574,126.65,126.62,3.52]
[1764596307268,17.4253784,126.66,126.62,16.70836846]
[1764596307459,17.4253784,126.66,126.63,0.66]
[1764596307460,16.7053784,126.66,126.63,0.66]
[1764596307658,16.70475557,126.67,126.63,13.18836846]
[1764596307857,17.38475557,126.67,126.63,8.58666219]
[1764596308173,13.20836846,126.66,126.63,3.52]
[1764596308769,0.68,126.65,126.63,3.52]
[1764596310067,8.57580383,126.65,126.63,3.52]
[1764596310570,22.01831338,126.64,126.6,3.52]
[1764596310952,0.68,126.63,126.6,3.52]
[1764596311462,20.42361342,126.66,126.61,13.21836846]
[1764596311672,19.73740424,126.67,126.63,7.89702282]
[1764596311673,8.57483081,126.67,126.63,7.89702282]
[1764596311860,37.64717738,126.68,126.64,16.73836846]
[1764596311861,16.70393715,126.68,126.64,16.73836846]
[1764596312072,9.48994492,126.67,126.64,3.52]
[1764596312248,22.01831338,126.67,126.64,3.52]
[1764596312453,22.01831338,126.66,126.64,3.52]
[1764596312652,0.68,126.65,126.62,3.52]
[1764596312860,22.01831338,126.66,126.62,4.21]
[1764596313469,0.68,126.68,126.63,0.69]
[1764596313669,22.01831338,126.68,126.63,0.69]
[1764596313975,7.89452909,126.67,126.63,21.11524483]
[1764596314166,7.89452909,126.67,126.64,0.69]
[1764596314368,7.89452909,126.67,126.64,4.21]
[1764596314748,29.91253853,126.68,126.64,4.21]
[1764596315074,8.80994492,126.69,126.65,13.21836846]
[1764596315276,8.80994492,126.69,126.61,16.308864]
[1764596315277,29.23187077,126.69,126.61,16.308864]
[1764596315471,8.80994492,126.67,126.63,13.21836846]
[1764596315775,16.70463733,126.67,126.63,21.11492238]
[1764596315977,16.70463733,126.67,126.64,0.69]
[1764596316166,17.38463733,126.67,126.64,0.69]
[1764596316367,0.68,126.66,126.62,24.63548934]
[1764596316747,0.68,126.66,126.63,0.69]
[1764596317452,0.68,126.66,126.63,12.1068319]
[1764596317652,17.38463733,126.67,126.63,24.63520036]
[1764596317948,52.74453526,126.71,126.64,13.21836846]
[1764596318165,0.68,126.69,126.64,13.21836846]
[1764596318575,0.68,126.69,126.65,0.69]
[1764596318977,0.68,126.69,126.64,12.52836846]
[1764596319273,0.68,126.69,126.65,0.69]
[1764596319446,21.10207474,126.69,126.65,8.58562501]
[1764596320047,8.57370628,126.69,126.65,8.58562501]
[1764596320550,0.68,126.68,126.65,8.58562501]
[1764596320752,7.89370628,126.69,126.66,4.21]
[1764596321459,7.89252673,126.71,126.67,13.21836846]
[1764596321875,7.89252673,126.71,126.68,0.69]
[1764596322066,8.57252673,126.71,126.68,0.69]
[1764596322586,8.57252673,126.71,126.68,8.58384367]
[1764596323383,8.57252673,126.71,126.69,3.52]
[1764596325674,0.68,126.7,126.69,3.52]
[1764596326781,13.98139712,126.7,126.66,8.58465835]
[1764596327080,27.62261906,126.71,126.67,5.1814522]
[1764596327255,28.30261906,126.71,126.67,5.1814522]
[1764596327456,0.68,126.7,126.67,0.69]
[1764596327958,8.57272004,126.7,126.67,8.58448618]
[1764596328484,8.57272004,126.7,126.67,13.07593838]
[1764596329381,8.57272004,126.7,126.67,8.58448618]
[1764596330281,0.68,126.7,126.67,8.58448618]
[1764596330461,13.30139712,126.72,126.67,12.38593838]
[1764596330462,0.68,126.71,126.67,12.38593838]
[1764596330780,0.68,126.71,126.67,13.07593838]
[1764596330984,0.68,126.71,126.67,5.1814522]
[1764596331478,5.1714522,126.71,126.67,0.69]
[1764596331777,7.89265982,126.7,126.67,8.58450512]
[1764596331980,13.30139712,126.69,126.65,3.52]
[1764596332186,0.68,126.68,126.65,4.21]
[1764596332358,0.68,126.68,126.63,8.5867601]
[1764596332359,8.80994492,126.67,126.63,8.5867601]
[1764596332564,4.4914522,126.66,126.62,11.4175034]
[1764596332872,0.68,126.66,126.62,12.1075034]
[1764596333388,0.68,126.66,126.62,4.21]
[1764596333779,8.57561659,126.66,126.62,12.10733808]
[1764596334285,13.06706879,126.66,126.62,12.10733808]
[1764596334486,13.06706879,126.66,126.62,4.21]
[1764596334681,13.98139712,126.65,126.61,7.89825017]
[1764596334874,13.98139712,126.65,126.61,11.41825017]
[1764596335080,0.68,126.64,126.61,11.41825017]
[1764596335575,0.68,126.64,126.61,12.10825017]
[1764596335982,12.38665441,126.66,126.62,0.68]
[1764596336171,13.10665441,126.66,126.62,0.68]
[1764596336368,4.4914522,126.66,126.62,0.68]
[1764596336773,5.2114522,126.66,126.62,0.68]
[1764596336970,24.20363233,126.67,126.62,5.1714522]
[1764596337187,24.92363233,126.67,126.62,5.1714522]
[1764596337359,24.92363233,126.67,126.63,0.68]
[1764596337558,0.72,126.66,126.63,0.68]
[1764596337978,8.61519278,126.66,126.63,0.68]
[1764596339266,8.61519278,126.66,126.63,8.57698472]
[1764596340177,8.80994492,126.65,126.61,16.58946941]
[1764596340483,4.4914522,126.63,126.59,11.41945901]
[1764596340662,0.72,126.62,126.59,12.09945901]
[1764596341989,13.10906686,126.63,126.59,12.09945901]
[1764596342583,8.61761466,126.63,126.59,12.09945901]
[1764596342786,13.10906686,126.63,126.59,12.09945901]
[1764596343000,14.02139712,126.62,126.59,3.52]
[1764596343500,0.72,126.61,126.59,3.52]
[1764596343679,13.30139712,126.6,126.58,0.2]
[1764596344072,0.72,126.59,126.58,0.2]
[1764596347098,21.92091524,126.59,126.58,0.2]
[1764596348882,17.42946304,126.59,126.58,0.2]
[1764596349087,21.92091524,126.59,126.58,0.2]
[1764596349289,17.42946304,126.59,126.58,0.2]
[1764596349800,21.92091524,126.59,126.58,0.2]
[1764596350011,16.70946304,126.59,126.58,0.2]
[1764596350299,9.06411873,151.36,126.58,0.2]
[1764596350300,9.52994492,126.63,126.58,5.3714522]
[1764596350476,14.02139712,126.63,126.58,5.3714522]
[1764596350673,14.02139712,126.63,126.59,0.68]
[1764596350982,13.30139712,126.63,126.59,0.68]
[1764596351186,8.80994492,126.59,126.58,0.2]
[1764596351395,13.30139712,126.59,126.58,0.2]
[1764596351706,9.52994492,126.59,126.58,0.2]
[1764596351895,17.028864,126.61,126.58,0.2]
[1764596352102,9.52994492,126.6,126.58,0.2]
[1764596352698,8.80994492,126.61,126.58,0.88]
[1764596353406,5.2114522,126.6,126.58,0.2]
[1764596353707,4.4914522,126.6,126.58,0.2]
[1764596353907,5.2114522,126.6,126.58,0.2]
[1764596354082,4.4914522,126.6,126.58,0.2]
[1764596354288,14.02139712,126.59,126.58,0.2]
[1764596354483,9.52994492,126.59,126.58,0.2]
[1764596354905,12.3909586,126.6,126.58,0.2]
[1764596355108,20.8003162,126.63,126.58,0.88]
[1764596355312,9.52994492,126.62,126.58,5.3714522]
[1764596355694,17.42759142,126.62,126.58,13.27159361]
[1764596355893,0.72,126.61,126.58,8.78014141]
[1764596356302,16.308864,126.63,126.59,5.1714522]
[1764596356610,21.5203162,126.63,126.59,0.68]
[1764596356792,29.41741004,126.63,126.59,0.68]
[1764596357111,24.92595784,126.63,126.59,8.579507]
[1764596357282,29.41741004,126.63,126.59,8.579507]
[1764596357487,21.5203162,126.63,126.6,0.68]
[1764596357691,16.308864,126.63,126.6,0.68]
[1764596357994,0.72,126.62,126.59,3.52]
[1764596358408,0.72,126.62,126.59,4.2]
[1764596358711,0.72,126.62,126.59,3.52]
[1764596358922,8.61784847,126.62,126.59,3.52]
[1764596359089,0.72,126.62,126.59,4.2]
[1764596359289,8.61767512,126.62,126.59,4.2]
[1764596359490,4.4914522,126.6,126.58,0.2]
[1764596359995,5.2114522,126.6,126.58,0.2]
[1764596360893,32.85324357,126.62,126.58,0.88]
[1764596361589,0.72,126.61,126.58,0.88]
[1764596361988,7.89767512,126.62,126.58,13.27111766]
[1764596362195,7.89767512,126.62,126.59,0.68]
[1764596362617,13.10864898,126.63,126.59,0.68]
[1764596362803,7.89719678,126.63,126.59,5.1714522]
[1764596362997,7.89719678,126.63,126.59,8.57904143]
[1764596363203,13.10864898,126.63,126.59,8.57904143]
[1764596364815,13.10864898,126.63,126.59,12.09904143]
[1764596365200,8.61719678,126.63,126.59,15.91049363]
[1764596365400,7.89719678,126.63,126.6,0.68]
[1764596365595,8.61719678,126.63,126.6,0.68]
[1764596366414,7.89719678,126.63,126.6,0.68]
[1764596366998,31.15741578,126.66,126.6,13.06988284]
[1764596367192,0.71,126.66,126.62,4.4914522]
[1764596367397,0.71,126.66,126.63,0.7]
[1764596367621,0.71,126.68,126.63,8.7114522]
[1764596368224,0.71,126.68,126.64,0.7]
[1764596368521,8.60401869,126.68,126.64,8.59604482]
[1764596369328,7.89401869,126.68,126.64,8.59604482]
[1764596369530,0.71,126.67,126.64,8.59604482]
[1764596370239,0.71,126.67,126.63,3.52]
[1764596370399,2.87629353,126.66,126.61,7.08629353]
[1764596370600,11.4808667,126.67,126.62,2.87629353]
[1764596370822,8.60457317,126.67,126.62,3.56629353]
[1764596371017,10.7708667,126.67,126.63,0.69]
[1764596371225,0.71,126.66,126.63,0.69]
[1764596371525,8.60455032,126.67,126.63,8.58681631]
[1764596372144,0.71,126.66,126.62,7.89730535]
[1764596372307,2.87629353,126.65,126.61,4.21]
[1764596372731,3.58629353,126.65,126.61,4.21]
[1764596373031,3.58629353,126.65,126.61,0.69]
[1764596373212,3.58629353,126.65,126.61,4.21]
[1764596373410,2.87629353,126.63,126.58,0.2]
[1764596373623,0.71,126.62,126.59,11.41923245]
[1764596374133,0.71,126.62,126.59,12.10923245]
[1764596374318,3.58629353,126.64,126.59,12.10923245]
[1764596374514,8.70610196,126.64,126.59,11.41923245]
[1764596374731,0.71,126.63,126.59,11.41923245]
[1764596374935,8.70610196,126.63,126.59,3.52]
[1764596375234,8.70610196,126.63,126.59,4.21]
[1764596375534,8.70610196,126.63,126.59,12.10948459]
[1764596375535,0.71,126.62,126.59,12.10948459]
[1764596376310,24.30496596,126.65,126.6,8.68610196]
[1764596376514,32.91092455,126.65,126.6,8.68610196]
[1764596376713,8.70610196,126.64,126.59,11.41948459]
[1764596376914,8.70610196,126.64,126.61,0.69]
[1764596377438,15.8941097,126.62,126.58,11.62012605]
[1764596377634,7.99610196,126.61,126.58,3.72]
[1764596377835,0.71,126.61,126.58,3.72]
[1764596378233,0.71,126.61,126.58,0.89]
[1764596378421,16.6041097,126.62,126.58,0.89]
[1764596378740,0.71,126.61,126.58,0.89]
[1764596379234,0.71,126.61,126.58,8.79014028]
[1764596379439,8.60836505,126.61,126.58,0.89]
[1764596379617,16.60446701,126.61,126.58,0.2]
[1764596380019,0.71,126.6,126.58,0.2]
[1764596380242,7.99610196,126.59,126.58,0.2]
[1764596380614,8.70610196,126.59,126.58,0.2]
[1764596381322,16.60562008,126.59,126.58,0.2]
[1764596382722,25.415565,126.59,126.58,0.2]
[1764596382921,8.80994492,126.58,126.57,0.2]
[1764596383149,21.03604688,126.58,126.57,0.2]
[1764596383950,21.17820845,126.58,126.57,0.2]
[1764596385127,29.07835065,126.58,126.57,0.2]
[1764596387648,32.24528782,126.58,126.57,0.2]
[1764596388652,32.10312625,126.58,126.57,0.2]
[1764596391658,32.24528782,126.58,126.57,0.2]
[1764596391855,16.308864,126.56,126.55,0.2]
[1764596392065,36.63491088,126.56,126.55,0.2]
[1764596392403,37.34491088,126.56,126.55,0.2]
[1764596392964,45.24630152,126.56,126.55,0.2]
[1764596393260,48.41348945,126.56,126.55,0.2]
[1764596393636,56.55175298,126.56,126.55,0.2]
[1764596393943,44.89348945,126.56,126.55,0.2]
[1764596394146,8.80994492,126.57,126.55,0.2]
[1764596394535,16.80604688,126.57,126.55,0.2]
[1764596394732,17.51604688,126.57,126.55,0.2]
[1764596395256,25.41684051,126.57,126.55,0.2]
[1764596395635,8.70610196,126.56,126.55,0.2]
[1764596395840,21.03604688,126.56,126.55,0.2]
[1764596396535,15.92287266,126.56,126.55,0.2]
[1764596397151,23.8242633,126.56,126.55,0.2]
[1764596397650,23.96642487,126.56,126.55,1e-08]
[1764596398036,23.96642487,126.56,126.54,1e-08]
[1764596398037,23.36674519,126.55,126.54,1e-08]
[1764596398237,24.06674519,126.55,126.54,1e-08]
[1764596398452,17.66407351,126.55,126.54,1e-08]
[1764596398864,20.83201395,126.55,126.54,1e-08]
[1764596399047,28.73402896,126.55,126.54,1e-08]
[1764596399238,32.25402896,126.55,126.54,1e-08]
[1764596400368,56.05210649,126.54,126.53,1e-08]
[1764596400554,25.11880892,126.5,126.44,0.65]
[1764596400742,8.01196702,126.46,126.44,0.65]
[1764596400943,25.11880892,126.5,126.44,0.65]
[1764596400944,11.53196702,126.47,126.44,0.65]
[1764596401146,7.90763877,126.46,126.44,0.65]
[1764596402146,3.52,126.47,126.44,0.65]
[1764596402793,35.68534162,126.48,126.44,0.65]
[1764596403142,19.97445622,126.5,126.47,8.01196702]
[1764596403341,8.80994492,126.53,126.49,8.01196702]
[1764596403551,16.82191194,126.53,126.48,8.01196702]
[1764596403942,16.82191194,126.53,126.49,0.65]
[1764596404571,8.80994492,126.53,126.49,0.65]
[1764596405064,7.90388871,126.52,126.49,0.65]
[1764596405371,16.82191194,126.51,126.47,0.65]
[1764596405561,8.01196702,126.48,126.43,27.84083102]
[1764596405759,8.01196702,126.48,126.42,0.2]
[1764596405760,8.71196702,126.47,126.42,0.2]
[1764596405963,12.32994492,126.48,126.43,0.65]
[1764596406171,8.01196702,126.46,126.43,0.65]
[1764596406878,25.11880892,126.48,126.42,0.2]
[1764596407067,15.91960579,126.46,126.43,0.65]
[1764596407256,7.90763877,126.46,126.43,0.65]
[1764596408149,15.91960579,126.46,126.43,0.65]
[1764596408483,8.01196702,126.44,126.42,0.2]
[1764596408647,8.01196702,126.43,126.42,0.2]
[1764596408847,11.53196702,126.44,126.42,0.2]
[1764596409465,8.01196702,126.44,126.42,0.2]
[1764596409668,27.67673571,126.46,126.42,0.85]
[1764596409965,15.91960579,126.46,126.42,0.85]
[1764596410274,35.68444495,126.48,126.43,8.5593302]
[1764596410455,8.01196702,126.47,126.43,8.5593302]
[1764596410774,8.01196702,126.47,126.44,0.65]
[1764596411068,8.60638836,126.48,126.44,0.65]
[1764596411274,15.91799831,126.49,126.44,8.66196702]
[1764596411668,16.61732511,126.5,126.45,0.65]
[1764596411874,7.90535809,126.5,126.45,0.65]
[1764596412078,8.21196702,126.51,126.46,8.01196702]
[1764596412267,75.0,126.59,126.48,8.01196702]
[1764596412268,15.91525615,126.53,126.48,8.01196702]
[1764596412569,7.90328913,126.53,126.48,8.01196702]
[1764596412779,16.61525615,126.53,126.49,0.65]
[1764596413379,8.71196702,126.53,126.49,0.65]
[1764596413577,16.61534861,126.53,126.49,0.65]
[1764596413957,36.37350873,126.53,126.49,0.65]
[1764596414283,35.67776418,126.51,126.45,0.65]
[1764596414461,8.01196702,126.49,126.45,0.65]
[1764596414976,8.71196702,126.5,126.45,8.66196702]
[1764596415279,7.90451347,126.51,126.47,8.01196702]
[1764596415483,7.90451347,126.51,126.46,8.66196702]
[1764596415872,15.91648049,126.51,126.47,0.65]
[1764596416263,8.01196702,126.5,126.47,0.65]
[1764596416572,8.01196702,126.5,126.45,16.56994566]
[1764596416573,8.71196702,126.5,126.45,16.56994566]
[1764596416763,8.01196702,126.48,126.43,20.09121864]
[1764596416968,8.01196702,126.48,126.44,0.65]
[1764596417166,8.71196702,126.48,126.44,0.65]
[1764596417471,17.52191194,126.49,126.44,0.65]
[1764596417670,8.01196702,126.48,126.44,0.65]
[1764596417973,8.71196702,126.48,126.44,0.65]
[1764596418283,7.90701352,126.47,126.44,0.65]
[1764596418673,28.57506999,126.49,126.44,16.57085234]
[1764596418674,28.24773203,126.49,126.44,16.57085234]
[1764596418879,48.71214028,126.49,126.44,8.66196702]
[1764596419079,8.71196702,126.48,126.44,0.65]
[1764596419264,0.7,126.48,126.44,0.65]
[1764596419574,48.71214028,126.49,126.44,0.65]
[1764596419985,8.01196702,126.47,126.44,0.65]
[1764596420167,8.01196702,126.47,126.42,8.75983037]
[1764596420487,8.01196702,126.45,126.42,0.85]
[1764596420685,8.80994492,126.45,126.42,0.2]
[1764596420894,8.01196702,126.43,126.42,0.2]
[1764596421076,8.80994492,126.45,126.42,0.2]
[1764596421077,8.01196702,126.45,126.42,0.2]
[1764596421273,8.01196702,126.45,126.42,0.85]
[1764596421471,8.01196702,126.45,126.42,0.2]
[1764596421682,8.71196702,126.45,126.42,0.2]
[1764596421883,8.01196702,126.43,126.42,0.2]
[1764596422494,15.92148216,126.43,126.42,0.2]
[1764596423262,7.90896125,126.44,126.42,0.85]
[1764596423466,8.01196702,126.48,126.43,8.01196702]
[1764596423689,35.6846025,126.48,126.43,8.66196702]
[1764596423882,27.67263548,126.48,126.44,0.65]
[1764596424091,7.90582921,126.49,126.45,8.01196702]
[1764596424487,16.61779623,126.49,126.44,8.01196702]
[1764596424686,15.91779623,126.49,126.45,0.65]
[1764596425279,15.91779623,126.49,126.45,8.55786007]
[1764596425685,15.91779623,126.49,126.46,0.65]
[1764596425882,7.90582921,126.49,126.46,0.65]
[1764596426087,15.91779623,126.49,126.46,0.65]
[1764596426895,8.01196702,126.49,126.46,0.65]
[1764596427091,0.67,126.49,126.44,16.63057894]
[1764596427294,8.68196702,126.49,126.45,0.71]
[1764596427598,8.01196702,126.48,126.45,0.71]
[1764596427779,8.01196702,126.47,126.42,8.88196702]
[1764596428399,8.01196702,126.47,126.43,0.67]
[1764596428994,15.91648049,126.51,126.46,8.01196702]
[1764596429192,15.91648049,126.51,126.47,0.67]
[1764596429401,7.90451347,126.51,126.47,8.68196702]
[1764596429571,7.90451347,126.51,126.48,0.67]
[1764596429773,7.90408411,126.52,126.48,8.68196702]
[1764596430172,8.80994492,126.55,126.49,0.67]
[1764596430369,8.80994492,126.56,126.52,12.54397177]
[1764596430602,0.72,126.55,126.5,12.54397177]
[1764596430785,13.26397177,126.55,126.52,0.67]
[1764596430984,16.71146926,126.56,126.52,0.67]
[1764596431183,20.548864,126.57,126.53,12.54397177]
[1764596431184,8.62083391,126.57,126.53,12.54397177]
[1764596431377,21.16480568,126.57,126.52,0.67]
[1764596431582,0.72,126.56,126.52,0.67]
[1764596431781,13.26397177,126.56,126.52,0.67]
[1764596431977,13.26397177,126.55,126.5,12.54397177]
[1764596432297,8.80994492,126.56,126.51,0.67]
[1764596432503,12.54397177,126.55,126.51,0.67]
[1764596432704,13.26397177,126.55,126.51,0.67]
[1764596433096,0.72,126.54,126.5,12.54397177]
[1764596433300,12.54397177,126.53,126.49,0.67]
[1764596433804,13.26397177,126.53,126.49,0.67]
[1764596434302,12.54397177,126.52,126.49,0.67]
[1764596434503,13.26397177,126.52,126.47,13.21397177]
[1764596434706,12.54397177,126.51,126.48,0.67]
[1764596434907,12.54397177,126.53,126.48,13.21397177]
[1764596435208,7.90345814,126.53,126.49,12.54397177]
[1764596435408,7.90345814,126.53,126.5,0.67]
[1764596435706,8.62290384,126.54,126.5,0.67]
[1764596436003,21.16687561,126.54,126.5,0.67]
[1764596436405,13.26397177,126.53,126.48,21.11988146]
[1764596436608,12.54397177,126.52,126.48,8.57590969]
[1764596436794,13.26397177,126.53,126.49,0.67]
[1764596436994,20.44786048,126.52,126.49,0.67]
[1764596437481,7.90388871,126.52,126.49,0.67]
[1764596437681,20.44786048,126.52,126.49,0.67]
[1764596437879,21.16786048,126.52,126.49,0.67]
[1764596438182,21.16786048,126.52,126.47,21.12042652]
[1764596438787,21.16786048,126.52,126.48,0.67]
[1764596438988,12.54397177,126.52,126.48,8.57610878]
[1764596439318,12.54397177,126.53,126.48,21.12008055]
[1764596439492,12.54397177,126.53,126.48,40.88605145]
[1764596439700,13.26397177,126.53,126.49,0.67]
[1764596440403,21.16761169,126.53,126.49,0.67]
[1764596440599,27.6586813,126.55,126.5,12.54397177]
[1764596440804,7.90258217,126.55,126.51,12.54397177]
[1764596441003,13.26397177,126.54,126.49,28.34015537]
[1764596441308,13.26397177,126.54,126.48,3.52]
[1764596441309,12.54397177,126.52,126.48,3.52]
[1764596441711,13.26397177,126.52,126.48,4.19]
[1764596442011,13.26397177,126.52,126.49,0.67]
[1764596442188,7.90316692,126.54,126.5,20.4491101]
[1764596442394,8.62316692,126.54,126.5,20.4491101]
[1764596442595,21.16713869,126.54,126.51,0.67]
[1764596442795,7.90316692,126.54,126.51,0.67]
[1764596443311,20.44713869,126.54,126.51,0.67]
[1764596443509,7.90201363,126.56,126.51,21.1178671]
[1764596443709,20.4459854,126.56,126.52,0.67]
[1764596444191,21.1659854,126.56,126.52,0.67]
[1764596444893,32.08201291,126.57,126.52,21.11723717]
[1764596444894,7.9007895,126.57,126.52,21.11723717]
[1764596445105,7.9007895,126.57,126.53,12.54397177]
[1764596445324,13.26397177,126.56,126.52,7.9032654]
[1764596445693,13.26397177,126.56,126.52,8.5732654]
[1764596446206,12.54397177,126.55,126.52,8.5732654]
[1764596446427,7.90201501,126.55,126.52,8.5732654]
[1764596446606,21.16598678,126.55,126.51,3.52]
[1764596446806,21.16598678,126.55,126.51,4.19]
[1764596447914,13.26397177,126.54,126.51,3.52]
[1764596448116,13.26397177,126.54,126.49,8.57575361]
[1764596448117,12.54397177,126.52,126.49,8.57575361]
[1764596448626,20.4478998,126.52,126.49,8.57575361]
[1764596449110,20.44717719,126.54,126.5,0.67]
[1764596449307,13.26397177,126.53,126.49,7.90575361]
[1764596449520,13.26397177,126.53,126.49,8.57575361]
[1764596450314,7.90320542,126.54,126.5,16.73397177]
[1764596450513,7.90320542,126.54,126.51,7.90451347]
[1764596450830,0.72,126.53,126.5,12.09481582]
[1764596451136,13.26397177,126.53,126.48,24.64003784]
[1764596451423,12.54397177,126.52,126.48,8.57606607]
[1764596451598,12.54397177,126.52,126.47,32.31037148]
[1764596451599,12.54397177,126.51,126.46,21.12133248]
[1764596451921,12.54397177,126.5,126.46,12.09736071]
[1764596452124,13.26397177,126.5,126.46,12.09736071]
[1764596452332,13.26397177,126.5,126.46,11.42736071]
[1764596452500,21.17009373,126.49,126.43,20.4431711]
[1764596452699,12.54397177,126.48,126.44,8.57888959]
[1764596453220,12.54397177,126.48,126.45,0.67]
[1764596453436,8.62536499,126.5,126.45,16.73397177]
[1764596453595,21.16933676,126.5,126.45,16.73397177]
[1764596453797,21.16933676,126.5,126.46,0.67]
[1764596454615,12.54397177,126.51,126.46,21.12115758]
[1764596454807,46.4,126.53,126.49,12.54397177]
[1764596455016,13.26397177,126.53,126.48,16.06397177]
[1764596455206,21.16730155,126.53,126.48,16.06397177]
[1764596455413,53.25199487,126.55,126.5,12.54397177]
[1764596455621,49.73199487,126.55,126.51,0.67]
[1764596455834,40.92204995,126.55,126.51,0.67]
[1764596456416,21.16658728,126.55,126.51,0.67]
[1764596456797,20.44658728,126.55,126.51,0.67]
[1764596457124,21.14658728,126.55,126.51,8.5744949]
[1764596457695,7.90168713,126.56,126.52,0.69]
[1764596457895,7.90168713,126.56,126.52,13.23397177]
[1764596458329,7.90168713,126.56,126.51,31.18577859]
[1764596458330,7.9007687,126.57,126.54,12.54397177]
[1764596458495,13.24397177,126.59,126.55,0.69]
[1764596458496,21.14357247,126.59,126.55,0.69]
[1764596458692,0.7,126.58,126.54,20.44642145]
[1764596458896,13.24397177,126.58,126.54,8.59261905]
[1764596459315,13.24397177,126.58,126.54,0.69]
[1764596459968,13.24397177,126.58,126.54,8.592619]
[1764596460223,16.70912526,126.6,126.55,12.54397177]
[1764596460544,27.6431663,126.62,126.58,20.44409678]
[1764596460702,27.6431663,126.62,126.58,8.59012501]
[1764596461032,40.88713807,126.62,126.58,8.59012501]
[1764596461226,21.1407352,126.64,126.59,13.23397177]
[1764596461434,7.89676343,126.64,126.61,12.54397177]
[1764596461825,7.89676343,126.64,126.61,13.23397177]
[1764596462125,20.4407352,126.64,126.59,16.75397177]
[1764596462301,7.89676343,126.64,126.61,12.54397177]
[1764596462828,7.89676343,126.64,126.61,13.23397177]
[1764596463022,20.4407352,126.64,126.6,7.89842284]
[1764596463229,21.1407352,126.64,126.6,7.89842284]
[1764596463528,21.1407352,126.64,126.6,8.58842284]
[1764596464113,19.74090715,126.65,126.61,13.23397177]
[1764596464114,7.89577575,126.65,126.61,13.23397177]
[1764596464319,0.2,126.66,126.63,12.54397177]
[1764596464530,0.2,126.66,126.64,13.23397177]